bitfinex-derivatives/quotes_SOLF0:USTF0_20251119
["timestamp","ask_amount","ask_price","bid_price","bid_amount"]
[1763569794352,0.0526513,134.14,134.12,0.05191663]
[1763569795256,3.02,134.18,134.12,0.05191663]
[1763569796360,3.07429013,134.16,134.12,0.05191663]
[1763569796559,0.04760783,134.15,134.13,0.05181567]
[1763569800351,3.02,134.21,134.13,0.05181567]
[1763569800555,3.02,134.21,134.1,9.47134076]
[1763569801362,3.02,134.16,134.14,0.05635515]
[1763569801564,3.05983583,134.16,134.1,9.47134076]
[1763569801953,3.05983583,134.16,134.06,9.47134076]
[1763569802258,3.02,134.16,134.06,9.47134076]
[1763569802452,3.02,134.19,134.1,9.47134076]
[1763569803656,0.03974836,134.16,134.13,0.05247685]
[1763569803856,3.02,134.23,134.14,9.47134076]
[1763569804868,3.02,134.23,134.17,0.05336519]
[1763569807769,3.02,134.28,134.18,9.47134076]
[1763569808070,3.02,134.28,134.22,9.52121008]
[1763569808470,3.02,134.28,134.22,0.04986932]
[1763569809865,3.02,134.28,134.23,9.47134076]
[1763569810468,3.02,134.35,134.23,9.47134076]
[1763569810669,3.02,134.35,134.28,0.05017218]
[1763569812670,6.75905204,134.43,134.28,0.05017218]
[1763569812671,3.02,134.43,134.28,0.05017218]
[1763569812874,3.02,134.43,134.34,0.0523976]
[1763569813179,3.02,134.43,134.37,0.05697604]
[1763569813479,3.02,134.4,134.31,62.0]
[1763569813977,3.02,134.4,134.3,9.47134076]
[1763569814586,3.06727056,134.36,134.34,0.04801886]
[1763569814785,3.06727056,134.36,134.34,0.04756647]
[1763569815585,0.04727056,134.36,134.34,0.04756647]
[1763569818888,3.02,134.43,134.34,9.51890723]
[1763569819185,3.02,134.43,134.34,9.47134076]
[1763569819991,3.02,134.43,134.37,0.04726983]
[1763569821685,3.02,134.47,134.38,9.47134076]
[1763569821887,3.02,134.47,134.41,0.04833221]
[1763569822284,5.44624147,134.56,134.41,0.04833221]
[1763569822488,3.02,134.5,134.47,0.0520224]
[1763569822683,3.02,134.5,134.47,0.05207616]
[1763569822884,3.02,134.5,134.39,9.47134076]
[1763569823086,3.02,134.5,134.39,31.74082249]
[1763569823285,3.02,134.5,134.39,9.47134076]
[1763569823883,0.04774389,134.46,134.43,0.05586829]
[1763569824592,3.06774389,134.46,134.43,0.05586829]
[1763569825790,3.03,134.45,134.35,9.47134076]
[1763569826383,3.03,134.45,134.31,9.47134076]
[1763569826784,3.08209635,134.39,134.37,0.05181753]
[1763569826991,3.07997328,134.39,134.37,0.05663489]
[1763569828102,3.07997328,134.39,134.31,9.47134076]
[1763569828989,3.07997328,134.39,134.34,0.05116885]
[1763569829192,3.03,134.37,134.24,71.47134076]
[1763569829900,3.03,134.37,134.24,9.47134076]
[1763569830096,3.03,134.37,134.22,22.39]
[1763569830400,3.03,134.31,134.29,0.05717199]
[1763569830601,3.08620556,134.31,134.29,0.05145148]
[1763569831897,0.05620556,134.31,134.29,0.05145148]
[1763569832696,3.08620556,134.31,134.29,0.05145148]
[1763569833699,0.05620556,134.31,134.29,0.05145148]
[1763569834403,0.05620556,134.31,134.29,1.53145148]
[1763569834996,0.05620556,134.31,134.29,0.05145148]
[1763569835705,3.03,134.37,134.3,1.48]
[1763569836003,3.03,134.43,134.31,62.0]
[1763569836203,3.03,134.43,134.27,22.39]
[1763569836204,3.03,134.42,134.27,22.39]
[1763569836399,3.03,134.41,134.27,22.39]
[1763569836801,0.04746741,134.35,134.33,0.05566929]
[1763569836994,0.04793056,134.35,134.33,0.05566929]
[1763569837197,3.03,134.46,134.34,9.47134076]
[1763569837395,3.03,134.46,134.34,31.86134076]
[1763569837907,3.03,134.46,134.34,9.47134076]
[1763569838210,0.05076954,134.41,134.39,0.04732069]
[1763569838501,3.06945725,134.41,134.3,9.47134076]
[1763569838704,3.02,134.41,134.3,9.47134076]
[1763569839406,3.02,134.41,134.31,62.0]
[1763569839700,0.04777248,134.37,134.35,0.05683901]
[1763569840205,3.06777248,134.37,134.35,0.05683901]
[1763569840403,0.04777248,134.37,134.35,0.05683901]
[1763569840800,3.06777248,134.37,134.35,0.05683901]
[1763569841006,3.06777248,134.37,134.26,9.47134076]
[1763569841202,3.02,134.43,134.26,9.47134076]
[1763569841399,3.02,134.41,134.26,9.47134076]
[1763569841604,3.02,134.39,134.26,9.47134076]
[1763569841900,0.0571706,134.34,134.31,0.05093055]
[1763569842105,0.05116932,134.34,134.31,0.05554378]
[1763569842300,3.07116932,134.34,134.31,0.05554378]
[1763569845403,0.05116932,134.34,134.31,0.05554378]
[1763569845803,3.07116932,134.34,134.31,0.05554378]
[1763569846810,3.07116932,134.34,134.23,6.15993936]
[1763569847001,3.02,134.34,134.23,6.15993936]
[1763569847801,0.05470498,134.31,134.28,0.04713103]
[1763569848001,3.02,134.3,134.28,0.04713103]
[1763569848800,3.02,134.3,134.2,43.98862168]
[1763569849004,3.02,134.3,134.2,22.01993936]
[1763569849807,0.0493277,134.26,134.24,0.05570447]
[1763569850004,3.0693277,134.26,134.24,0.05570447]
[1763569853312,0.0493277,134.26,134.24,0.05570447]
[1763569853501,3.0693277,134.26,134.24,0.05570447]
[1763569853700,3.0693277,134.26,134.2,28.40785083]
[1763569854706,3.0693277,134.26,134.22,0.04983738]
[1763569861213,3.0693277,134.26,134.16,6.15993936]
[1763569861413,3.02,134.26,134.16,6.15993936]
[1763569862015,3.02,134.26,134.15,15.86]
[1763569862210,3.02,134.21,134.19,0.05559715]
[1763569862411,3.07418608,134.21,134.19,0.05056468]
[1763569862918,3.07418608,134.21,134.14,6.15993936]
[1763569863710,3.07418608,134.21,134.16,0.05469195]
[1763569864618,3.07418608,134.21,134.09,89.32]
[1763569864814,3.02,134.21,134.09,105.18]
[1763569865709,3.0752225,134.16,134.14,0.05419215]
[1763569865912,3.07163395,134.16,134.14,0.04837257]
[1763569866120,0.05163395,134.16,134.14,0.04837257]
[1763569867521,3.07163395,134.16,134.14,0.04837257]
[1763569868122,3.07163395,134.16,134.09,89.32]
[1763569868429,3.07163395,134.16,134.04,22.03993936]
[1763569868630,3.02,134.16,134.04,22.03993936]
[1763569869226,0.05476185,134.11,134.09,0.04767517]
[1763569869420,0.05218404,134.11,134.09,0.04767517]
[1763569869631,3.02,134.16,134.09,0.04767517]
[1763569870514,3.27,134.13,134.09,0.04767517]
[1763569870726,0.05062815,134.12,134.1,0.05527458]
[1763569871029,3.32062815,134.12,134.1,0.05527458]
[1763569871230,3.32062815,134.12,134.06,62.0]
[1763569871427,3.32062815,134.12,134.04,22.89635272]
[1763569871723,3.32062815,134.12,134.02,6.15993936]
[1763569871915,3.32062815,134.12,134.02,10.27993936]
[1763569871916,3.27,134.12,134.02,10.27993936]
[1763569872426,3.31946718,134.08,134.06,0.0519738]
[1763569872622,3.32123213,134.08,134.06,0.04704055]
[1763569872816,0.05123213,134.08,134.06,0.04704055]
[1763569873220,3.32123213,134.08,134.06,0.04704055]
[1763569874527,3.32123213,134.08,133.88,22.39]
[1763569874720,3.27,134.08,133.96,6.15993936]
[1763569875517,3.27,134.02,133.85,143.67144822]
[1763569875721,3.27,134.02,133.85,121.28144822]
[1763569875923,3.27,134.02,133.89,6.15993936]
[1763569876224,3.27,134.02,133.92,6.15993936]
[1763569876631,0.04993832,133.98,133.96,0.0557854]
[1763569876829,3.31993832,133.98,133.96,0.0557854]
[1763569878618,3.31993832,133.98,133.89,6.15993936]
[1763569878817,3.27,133.98,133.89,6.15993936]
[1763569879226,3.27,133.98,133.84,17.17921039]
[1763569879533,0.05649051,133.92,133.87,6.15993936]
[1763569879743,0.05526589,133.91,133.87,6.15993936]
[1763569880234,3.27,133.95,133.87,6.15993936]
[1763569881125,0.05531095,133.92,133.9,0.0500119]
[1763569881633,3.27,133.98,133.9,6.20995126]
[1763569881938,3.27,133.98,133.9,6.15993936]
[1763569882227,3.27,133.98,133.91,6.15993936]
[1763569882434,3.27,133.95,133.93,0.04812126]
[1763569882626,3.32455808,133.95,133.93,0.05375996]
[1763569883027,0.05455808,133.95,133.93,0.05375996]
[1763569883532,3.32455808,133.95,133.93,0.05375996]
[1763569885839,3.19455808,133.95,133.93,0.05375996]
[1763569886141,0.05455808,133.95,133.93,0.05375996]
[1763569886325,3.14,134.08,133.94,6.15993936]
[1763569886633,3.14,134.08,133.93,6.15993936]
[1763569887234,0.05341267,134.02,133.99,0.04764123]
[1763569887430,3.14,134.01,133.99,0.05075698]
[1763569888231,3.14,134.01,133.99,0.00075698]
[1763569888536,3.14,134.01,133.93,6.15993936]
[1763569889435,3.19307271,133.98,133.96,0.04768239]
[1763569889638,3.19009219,133.98,133.96,0.05717997]
[1763569890331,0.05009219,133.98,133.96,6.21711933]
[1763569890531,3.14,134.13,133.96,7.71711933]
[1763569890735,3.14,134.11,133.96,6.15993936]
[1763569891138,3.14,134.11,133.99,6.15993936]
[1763569891335,3.14,134.11,134.02,6.15993936]
[1763569891640,3.18792786,134.08,134.0,6.15993936]
[1763569891831,3.14,134.08,134.0,6.15993936]
[1763569892436,3.14,134.16,134.06,6.15993936]
[1763569892630,3.14,134.11,134.1,0.04798055]
[1763569892840,3.14,134.11,134.09,0.054187]
[1763569893538,0.05223351,134.12,134.09,0.054187]
[1763569893937,3.19223351,134.12,134.09,0.054187]
[1763569894134,0.05223351,134.12,134.09,6.21412636]
[1763569894332,3.14,134.15,134.09,6.21412636]
[1763569894536,3.14,134.24,134.12,6.15993936]
[1763569894939,3.14,134.23,134.12,6.15993936]
[1763569895450,3.14,134.18,134.16,0.05388467]
[1763569897434,3.19561691,134.19,134.16,0.05388467]
[1763569897836,0.05561691,134.19,134.16,0.05388467]
[1763569898231,3.36561691,134.19,134.16,0.05388467]
[1763569898432,5.43951241,134.25,134.16,0.05388467]
[1763569898639,6.74657439,134.28,134.14,6.15993936]
[1763569898945,5.44133005,134.27,134.17,6.15993936]
[1763569899141,6.74657439,134.29,134.17,6.15993936]
[1763569899446,116.53851812,134.37,134.17,6.15993936]
[1763569899447,0.05252422,134.24,134.22,0.05246194]
[1763569899641,0.05416392,134.24,134.22,2.72629718]
[1763569899838,95.71993936,134.37,134.22,2.72629718]
[1763569899839,5.44252139,134.31,134.22,2.72629718]
[1763569900036,6.74657439,134.34,134.22,2.67]
[1763569900245,12.19159742,134.33,134.18,2.67]
[1763569900545,3.31,134.31,134.18,2.67]
[1763569900747,3.36249219,134.26,134.23,0.04882873]
[1763569902534,3.36249219,134.26,134.15,2.67]
[1763569902739,3.31,134.26,134.15,2.67]
[1763569903244,3.31,134.26,134.12,2.67]
[1763569903441,3.31,134.25,134.12,2.67]
[1763569903640,3.36582146,134.2,134.18,0.05398441]
[1763569903842,3.36043921,134.2,134.18,0.05398441]
[1763569904348,0.05043921,134.2,134.18,0.05398441]
[1763569904646,0.05043921,134.2,134.18,2.72398441]
[1763569905245,3.36043921,134.2,134.18,0.05398441]
[1763569907047,3.36043921,134.2,134.09,2.67]
[1763569907250,3.31,134.2,134.09,2.67]
[1763569908048,3.31,134.26,134.14,2.67]
[1763569909256,0.05599169,134.21,134.19,2.66828282]
[1763569909455,0.05342585,134.21,134.19,2.66828282]
[1763569909753,3.31,134.26,134.19,2.66828282]
[1763569909938,5.45035075,134.32,134.19,2.66828282]
[1763569910137,292.0,134.56,134.19,2.66828282]
[1763569910138,3.31,134.31,134.2,2.62]
[1763569910550,0.05518285,134.27,134.25,2.62]
[1763569910757,0.05518285,134.27,134.24,0.04984504]
[1763569911147,0.05518285,134.27,134.24,2.66984504]
[1763569911748,0.05518285,134.27,134.24,0.04984504]
[1763569912347,0.05518285,134.27,134.24,2.66984504]
[1763569912852,3.31,134.31,134.24,2.66984504]
[1763569913858,3.36695697,134.29,134.24,2.66984504]
[1763569914152,3.36695697,134.29,134.25,0.04712996]
[1763569916650,3.36695697,134.29,134.15,2.67]
[1763569916854,3.31,134.29,134.15,2.67]
[1763569917751,0.05566533,134.23,134.21,0.05303619]
[1763569917957,0.04717746,134.23,134.21,0.05491119]
[1763569918353,0.04717746,134.23,134.21,2.72491119]
[1763569918554,3.31,134.27,134.21,2.72491119]
[1763569919551,0.04841413,134.25,134.21,2.72491119]
[1763569920159,3.31,134.3,134.21,2.72491119]
[1763569920367,3.31,134.3,134.21,2.67]
[1763569920755,3.31,134.3,134.18,2.67]
[1763569920959,0.0529409,134.25,134.23,0.05108956]
[1763569921172,3.36678041,134.25,134.23,0.05004892]
[1763569922261,3.31,134.24,134.14,2.67]
[1763569923266,0.05650428,134.2,134.18,0.05117046]
[1763569923560,0.05650428,134.2,134.18,2.77117046]
[1763569923763,3.31,134.24,134.18,2.77117046]
[1763569924464,3.31,134.24,134.18,0.05117046]
[1763569924651,3.31,134.21,134.18,0.05117046]
[1763569924854,3.31,134.21,134.18,0.05278489]
[1763569926956,0.0545486,134.22,134.18,2.77278489]
[1763569929458,3.3045486,134.22,134.18,2.77278489]
[1763569929962,3.3045486,134.22,134.18,0.05278489]
[1763569930866,0.0545486,134.22,134.18,2.77278489]
[1763569931664,3.3045486,134.22,134.18,0.05278489]
[1763569932884,3.25,134.3,134.19,2.72]
[1763569933677,3.25,134.3,134.23,0.05332907]
[1763569933867,3.29966334,134.26,134.23,0.05332907]
[1763569934064,3.30208981,134.26,134.23,0.05558934]
[1763569935370,0.05208981,134.26,134.23,2.77558934]
[1763569935666,3.30208981,134.26,134.23,0.05558934]
[1763569936466,3.25,134.25,134.23,0.05558934]
[1763569937062,0.05208981,134.26,134.23,0.05558934]
[1763569937262,5.50542496,134.25,134.23,0.05558934]
[1763569937472,3.30208981,134.26,134.23,0.05558934]
[1763569937674,5.50511084,134.25,134.23,0.05558934]
[1763569937973,3.30208981,134.26,134.23,0.05558934]
[1763569938178,5.50557286,134.25,134.23,0.05558934]
[1763569938366,3.30208981,134.26,134.23,0.05558934]
[1763569938674,0.05208981,134.26,134.23,2.77558934]
[1763569938870,0.05208981,134.26,134.23,0.05558934]
[1763569939077,3.30208981,134.26,134.23,0.05558934]
[1763569939263,0.05208981,134.26,134.23,0.05558934]
[1763569939465,3.25,134.3,134.23,2.77558934]
[1763569939665,5.49678209,134.29,134.23,2.77558934]
[1763569939872,5.49678209,134.28,134.23,2.77558934]
[1763569940073,3.25,134.3,134.23,2.77558934]
[1763569940370,5.49718429,134.29,134.23,2.77558934]
[1763569940563,3.25,134.27,134.23,0.05558934]
[1763569940771,3.25,134.25,134.24,0.05593807]
[1763569941074,3.25,134.24,134.15,2.72]
[1763569941274,3.25,134.22,134.15,2.72]
[1763569941579,5.49718429,134.21,134.15,2.72]
[1763569941768,5.49718429,134.2,134.15,2.72]
[1763569942076,0.05119711,134.19,134.16,0.0521781]
[1763569942575,3.25,134.22,134.16,2.7721781]
[1763569942783,3.25,134.2,134.16,0.0521781]
[1763569943668,3.25,134.18,134.16,0.0521781]
[1763569944181,0.04823991,134.19,134.16,0.0521781]
[1763569945571,3.10823991,134.19,134.16,0.0521781]
[1763569946275,5.49894223,134.22,134.16,2.7721781]
[1763569946480,3.06,134.23,134.16,64.7721781]
[1763569946874,3.06,134.23,134.16,2.7721781]
[1763569947267,3.11571618,134.21,134.16,2.7721781]
[1763569947475,0.04885394,134.2,134.17,0.04968035]
[1763569948481,0.04885394,134.2,134.17,2.76968035]
[1763569949580,3.10885394,134.2,134.17,0.04968035]
[1763569949777,0.04885394,134.2,134.17,0.04968035]
[1763569950185,0.04885394,134.2,134.17,2.76968035]
[1763569950384,0.04885394,134.2,134.17,0.04968035]
[1763569951080,3.10885394,134.2,134.17,0.04968035]
[1763569955584,0.04885394,134.2,134.17,2.76968035]
[1763569955784,0.04885394,134.2,134.17,0.04968035]
[1763569956289,0.04885394,134.2,134.17,2.76968035]
[1763569957581,0.04885394,134.2,134.17,0.04968035]
[1763569957975,0.04885394,134.2,134.17,2.76968035]
[1763569959490,3.38885394,134.2,134.17,0.04968035]
[1763569960190,0.04885394,134.2,134.17,2.76968035]
[1763569960378,0.04885394,134.2,134.17,0.04968035]
[1763569960892,0.04885394,134.2,134.17,2.76968035]
[1763569961193,0.04885394,134.2,134.17,0.04968035]
[1763569961791,0.04885394,134.2,134.17,2.76968035]
[1763569962387,5.49148611,134.27,134.17,2.76968035]
[1763569962388,3.34,134.27,134.17,2.76968035]
[1763569962587,3.34,134.27,134.17,2.72]
[1763569962794,5.49235262,134.29,134.17,2.72]
[1763569962795,3.34,134.25,134.17,2.72]
[1763569963498,3.39358964,134.22,134.2,0.05199216]
[1763569963695,3.39395022,134.22,134.2,0.05188956]
[1763569964787,0.05395022,134.22,134.2,0.05188956]
[1763569965189,3.39395022,134.22,134.2,0.05188956]
[1763569968800,0.05395022,134.22,134.2,0.05188956]
[1763569969402,0.05395022,134.22,134.2,2.77188956]
[1763569969595,3.34,134.28,134.2,2.77188956]
[1763569969795,3.34,134.28,134.2,2.72]
[1763569970699,3.39325118,134.25,134.23,0.0565173]
[1763569971001,3.39660667,134.25,134.23,0.04761514]
[1763569976607,3.39660667,134.25,134.17,2.72]
[1763569976802,3.34,134.25,134.17,2.72]
[1763569977402,3.34,134.25,134.14,2.76]
[1763569977597,0.05713898,134.21,134.18,0.04789737]
[1763569977900,3.39713898,134.21,134.18,0.04789737]
[1763569978102,0.05713898,134.21,134.18,2.80789737]
[1763569978502,3.39713898,134.21,134.18,0.04789737]
[1763569978809,0.05713898,134.21,134.18,2.80789737]
[1763569980101,3.39713898,134.21,134.18,2.80789737]
[1763569980298,3.39713898,134.21,134.18,0.04789737]
[1763569980705,3.34,134.2,134.09,38.68405335]
[1763569980900,3.34,134.2,134.09,18.62]
[1763569981105,3.34,134.18,134.09,15.86]
[1763569981306,3.34,134.18,134.1,2.76]
[1763569981708,0.05232275,134.15,134.13,2.81396968]
[1763569981907,0.05624916,134.15,134.13,2.81610666]
[1763569982309,9.17281483,134.24,134.13,2.81610666]
[1763569982310,6.87961112,134.24,134.13,2.81610666]
[1763569982506,3.34,134.22,134.14,2.76]
[1763569982707,3.34,134.2,134.1,2.76]
[1763569983103,10.21961112,134.23,134.15,8.93213379]
[1763569983304,3.34,134.23,134.18,0.05686881]
[1763569983508,0.05242653,134.2,134.18,0.05686881]
[1763569984316,0.05242653,134.2,134.18,2.81686881]
[1763569985506,3.34,134.28,134.18,4.31686881]
[1763569985714,5.71120527,134.27,134.21,2.71]
[1763569985914,3.34,134.28,134.21,2.71]
[1763569986817,0.05025218,134.26,134.23,2.7595038]
[1763569987314,0.05025218,134.26,134.23,8.93163759]
[1763569987509,0.05025218,134.26,134.24,2.71]
[1763569988310,0.05025218,134.26,134.23,0.0495038]
[1763569988516,0.05025218,134.26,134.23,2.7695038]
[1763569989320,0.05025218,134.26,134.23,8.94163759]
[1763569989514,0.05025218,134.26,134.24,2.72]
[1763569990122,0.05025218,134.26,134.23,0.0495038]
[1763569990624,3.16025218,134.26,134.23,0.0495038]
[1763569993519,3.16025218,134.26,134.14,2.77]
[1763569993520,8.79567693,134.25,134.14,2.77]
[1763569993721,3.11,134.25,134.14,2.77]
[1763569994121,3.11,134.25,134.17,2.77]
[1763569994518,0.05441907,134.22,134.21,2.77]
[1763569994721,3.16441907,134.22,134.2,0.04814112]
[1763569995122,3.16441907,134.22,134.15,2.77]
[1763569996120,3.16441907,134.22,134.17,0.05592588]
[1763569996822,3.11,134.2,134.17,0.05592588]
[1763569999325,3.11,134.2,134.1,2.77]
[1763569999522,3.11,134.18,134.1,2.77]
[1763570000232,0.0483444,134.15,134.13,0.05477798]
[1763570001126,0.0483444,134.15,134.13,2.87477798]
[1763570001523,3.1583444,134.15,134.13,0.05477798]
[1763570001718,4.6583444,134.15,134.06,2.82]
[1763570002027,3.11,134.14,134.04,2.82]
[1763570002523,3.11,134.14,134.05,2.82]
[1763570002823,3.1641581,134.11,134.08,0.04960928]
[1763570003029,3.16601736,134.11,134.08,0.04946061]
[1763570006739,3.16601736,134.11,133.99,9.04213379]
[1763570006940,3.11,134.11,133.99,9.04213379]
[1763570007142,3.11,134.11,133.96,2.87]
[1763570007836,3.31,134.04,133.96,2.87]
[1763570008734,3.31,134.04,133.96,25.50224208]
[1763570008942,0.05069234,134.01,133.99,0.05197223]
[1763570009833,3.36069234,134.01,133.99,0.05197223]
[1763570011745,0.05069234,134.01,133.99,0.05197223]
[1763570012644,3.36069234,134.01,133.99,0.05197223]
[1763570013440,3.36069234,134.01,133.93,2.92]
[1763570013645,3.36069234,134.01,133.9,9.09213379]
[1763570013846,3.31,134.0,133.88,5.5]
[1763570014445,3.31,134.0,133.88,8.42]
[1763570014648,3.36620046,133.95,133.93,0.05186755]
[1763570014954,3.36506095,133.95,133.93,0.05186755]
[1763570015139,0.05506095,133.95,133.93,0.05186755]
[1763570015457,0.05506095,133.95,133.93,4.47186755]
[1763570015746,0.05506095,133.95,133.94,2.92]
[1763570016246,3.31,134.06,133.93,0.05186755]
[1763570016437,3.31,134.06,133.96,2.92]
[1763570017037,0.05093886,134.02,134.0,0.05599897]
[1763570017342,3.36093886,134.02,134.0,0.05599897]
[1763570018545,3.36093886,134.02,133.93,2.92]
[1763570018739,3.31,134.02,133.93,2.92]
[1763570019651,0.05316899,133.99,133.96,0.04852922]
[1763570020150,3.10316899,133.99,133.96,0.04852922]
[1763570021247,3.10316899,133.99,133.89,64.93]
[1763570021438,3.05,133.99,133.89,64.93]
[1763570022049,3.05,133.99,133.89,2.93]
[1763570022245,0.05569193,133.95,133.93,0.05717599]
[1763570022642,0.05569193,133.95,133.93,3.03717599]
[1763570025753,3.10569193,133.95,133.93,0.05717599]
[1763570026257,0.05569193,133.95,133.93,0.05717599]
[1763570026752,3.10569193,133.95,133.93,0.05717599]
[1763570028759,3.10569193,133.95,133.85,2.98]
[1763570029063,3.05,133.95,133.85,2.98]
[1763570029760,3.10047985,133.91,133.89,0.0486504]
[1763570029961,3.10244483,133.91,133.89,0.05600051]
[1763570030158,0.05244483,133.91,133.89,0.05600051]
[1763570030355,0.05244483,133.91,133.89,3.03600051]
[1763570032572,3.10244483,133.91,133.89,0.05600051]
[1763570033163,0.05244483,133.91,133.89,0.05600051]
[1763570033867,3.10244483,133.91,133.89,0.05600051]
[1763570035066,0.05244483,133.91,133.89,3.03600051]
[1763570036767,3.10244483,133.91,133.89,0.05600051]
[1763570037262,0.05244483,133.91,133.89,3.03600051]
[1763570039160,0.05244483,133.91,133.89,0.05600051]
[1763570039357,0.05244483,133.91,133.89,3.03600051]
[1763570039767,0.05244483,133.91,133.89,0.05600051]
[1763570040271,0.05244483,133.91,133.89,3.03600051]
[1763570040466,0.05244483,133.91,133.89,0.05600051]
[1763570040873,0.05244483,133.91,133.89,3.03600051]
[1763570041075,3.05,133.98,133.89,3.03600051]
[1763570041269,5.62910149,133.97,133.89,2.98]
[1763570041478,5.62910149,133.96,133.89,2.98]
[1763570041667,3.05,133.98,133.89,2.98]
[1763570041971,3.05,133.96,133.89,2.98]
[1763570042277,3.05,133.94,133.92,0.04934909]
[1763570042467,5.63819721,133.93,133.92,0.04934909]
[1763570042867,8.68819721,133.93,133.92,0.04934909]
[1763570043073,5.63819721,133.93,133.92,0.04934909]
[1763570043778,0.05675077,133.95,133.92,0.04934909]
[1763570043975,0.05675077,133.95,133.92,3.02934909]
[1763570045579,6.87961112,134.0,133.93,2.92]
[1763570045771,8.71600304,133.99,133.93,2.92]
[1763570045971,8.71600304,133.98,133.93,2.92]
[1763570046272,5.66600304,133.97,133.93,2.92]
[1763570046470,5.72110673,133.96,133.93,2.92]
[1763570046683,5.66600304,133.95,133.94,2.973067]
[1763570046978,5.67201053,133.95,133.93,0.05097869]
[1763570047169,5.67264835,133.94,133.93,0.05119814]
[1763570048171,8.82264835,133.94,133.93,0.05119814]
[1763570048778,15.70225947,133.94,133.93,0.05119814]
[1763570049171,8.82264835,133.94,133.93,0.05119814]
[1763570049370,5.67264835,133.94,133.93,0.05119814]
[1763570049774,5.67264835,133.94,133.93,2.97119814]
[1763570049977,5.68526625,133.94,133.93,0.05119814]
[1763570050379,5.68526625,133.94,133.93,2.97119814]
[1763570050579,3.19936416,133.95,133.93,0.05119814]
[1763570050781,15.72032876,133.94,133.93,0.05119814]
[1763570051078,8.84071764,133.94,133.93,0.05119814]
[1763570051875,5.69071764,133.94,133.93,0.05119814]
[1763570052679,5.69071764,133.94,133.93,2.97119814]
[1763570052882,0.04936416,133.95,133.93,2.97119814]
[1763570053380,6.87961112,134.0,133.93,2.97119814]
[1763570053580,5.65693849,133.99,133.93,2.97119814]
[1763570053881,5.65693849,133.98,133.93,2.97119814]
[1763570054082,10.02961112,134.01,133.93,2.97119814]
[1763570054282,0.04798096,133.98,133.93,2.97119814]
[1763570056185,3.15,134.04,133.95,2.87]
[1763570056393,5.65510401,134.03,133.95,2.87]
[1763570056686,10.02961112,134.07,133.95,14.73]
[1763570056891,5.65551659,134.06,133.96,2.87]
[1763570057189,6.87961112,134.08,133.95,11.86]
[1763570057190,0.04812681,134.02,134.0,2.92444575]
[1763570057383,0.0488031,134.02,134.0,2.92444575]
[1763570058087,3.15,134.08,134.0,2.92444575]
[1763570058293,5.65317724,134.07,134.0,2.92444575]
[1763570058491,3.15,134.08,134.0,2.92444575]
[1763570058792,8.80288709,134.07,134.0,2.92444575]
[1763570058982,0.05702077,134.05,134.0,2.87]
[1763570059186,0.05702077,134.05,134.02,0.05057295]
[1763570059381,3.20702077,134.05,134.02,0.05057295]
[1763570061094,0.05702077,134.05,134.02,2.92057295]
[1763570062297,3.15,134.11,134.02,2.92057295]
[1763570062495,3.15,134.11,134.02,2.87]
[1763570062994,3.15,134.11,134.03,62.0]
[1763570063293,3.15,134.11,134.02,2.87]
[1763570063503,3.15,134.07,134.05,0.04953848]
[1763570064384,0.04755237,134.08,134.05,2.91953848]
[1763570065188,3.36755237,134.08,134.05,0.04953848]
[1763570065586,0.04755237,134.08,134.05,2.90953848]
[1763570067394,0.04755237,134.08,134.06,2.86]
[1763570067698,0.04755237,134.08,134.05,2.90953848]
[1763570070193,0.04755237,134.08,134.07,2.86]
[1763570070492,3.32,134.15,134.05,22.4729173]
[1763570070695,3.32,134.15,134.05,104.5166]
[1763570070890,3.32,134.15,134.07,6.7178]
[1763570071090,3.32,134.15,134.05,104.5138]
[1763570071389,3.32,134.1,134.09,0.04864892]
[1763570071594,3.32,134.1,134.02,104.5403]
[1763570071789,3.32,134.09,134.01,104.5448]
[1763570071995,3.32,134.09,134.04,6.7193]
[1763570072596,11.63527677,134.1,134.04,3.3793]
[1763570072597,3.32,134.07,134.04,3.3793]
[1763570072898,3.32,134.07,134.05,6.7188]
[1763570073491,3.32,134.07,134.05,6.7743442]
[1763570073687,1.5,134.06,134.05,0.0555442]
[1763570073894,4.82,134.06,134.05,0.0555442]
[1763570074994,3.32,134.06,134.05,0.0555442]